fUST/lending_fUST_20240316
["ID","MTS","AMOUNT","RATE_DAILY","PERIOD"]
[319179943,1710588632130,-179.88530837,0.00015218,2]
[319179945,1710588632140,-3431.50690938,0.00015218,2]
[319179947,1710588632149,-155.16447434,0.00015219,2]
[319179948,1710588632160,-905.08174166,0.00015219,2]
[319179950,1710588632171,-806.7681553,0.0001522,2]
[319179951,1710588632181,-2600.35966452,0.0001522,2]
[319179953,1710588632191,-170.99144379,0.00015221,2]
[319179954,1710588632203,-320.50917067,0.00015221,2]
[319179956,1710588632215,-300.0,0.00015221,2]
[319179957,1710588632224,-587.84977146,0.00015221,2]
[319179958,1710588632234,-404.89614019,0.00015222,2]
[319179959,1710588632245,-1607.97410816,0.00015222,2]
[319179960,1710588632256,-3147.88054941,0.00015222,2]
[319179961,1710588632265,-208.51873465,0.00015223,2]
[319179962,1710588632276,-2117.10922945,0.00015223,2]
[319179963,1710588632286,-155.16447434,0.00015223,2]
[319179964,1710588632297,-3224.45045373,0.00015223,2]
[319179965,1710588632308,-1081.84484016,0.00015224,2]
[319179966,1710588632319,-160.59923582,0.00015225,2]
[319179967,1710588632329,-290.80471979,0.00015225,2]
[319179968,1710588632342,-373.97598719,0.00015229,2]
[319179969,1710588632352,-34211.4034815,0.0001539,2]
[319179970,1710588632362,-684.232144,0.00015522,2]
[319179971,1710588632373,-6204.2335005,0.00015558,2]
[319179972,1710588632382,-886.90236937,0.00017557,2]
[319179973,1710588632393,-416.09170837,0.00017989,2]
[319179974,1710588632402,-1666.79051377,0.00017992,2]
[319179975,1710588632412,-155.27670732,0.000187,2]
[319179976,1710588632421,-388.47999996,0.00018794,2]
[319179977,1710588632431,-187.47843617,0.00018893,2]
[319179979,1710588632440,-1000.0,0.00018893,2]
[319179981,1710588632450,-279.12483654,0.000189,2]
[319179982,1710588632461,-306.8604924,0.00018986,2]
[319179984,1710588632472,-153.0,0.00018986,2]
[319179985,1710588632483,-523.43498151,0.00018991,2]
[319179986,1710588632494,-431.78510985,0.00018991,2]
[319179987,1710588632504,-155.2529692,0.00018991,2]
[319179988,1710588632515,-1169.20023289,0.00018991,2]
[319179989,1710588632619,-155.84660061,0.00018991,2]
[319179990,1710588632629,-311.36793859,0.00018991,2]
[319179991,1710588632640,-765.82237552,0.00018992,2]
[319179992,1710588632650,-4263.69626185,0.00018992,2]
[319179993,1710588632660,-536.10076739,0.00018992,2]
[319179994,1710588632670,-155.91462232,0.00018992,2]
[319179995,1710588632680,-15267.45505346,0.00018992,2]
[319179996,1710588632690,-616.25212117,0.00018992,2]
[319179997,1710588632700,-155.42872887,0.00018992,2]
[319179998,1710588632711,-155.71244455,0.00018992,2]
[319179999,1710588632720,-204.89534336,0.00018992,2]
[319180000,1710588632731,-14288.89913168,0.00018993,2]
[319180001,1710588632746,-11386.76482143,0.00018993,2]
[319180002,1710588632759,-29723.21175119,0.00018993,2]
[319180003,1710588632770,-4047.29388808,0.00018993,2]
[319180004,1710588632780,-155.53372428,0.00018993,2]
[319180005,1710588632789,-486.76626536,0.00018993,2]
[319180006,1710588632801,-192.15335833,0.00018993,2]
[319180007,1710588632812,-262.47948265,0.00018993,2]
[319180008,1710588632822,-71932.56153011,0.00018994,60]
[319180069,1710588638078,-1672.75319584,0.00018994,60]
[319180070,1710588638089,-2171.25544874,0.00018994,60]
[319180071,1710588638101,-26863.69789791,0.00018994,60]
[319180086,1710588640010,-6834999.99999802,0.00018994,60]
[319180087,1710588640022,-65538.82154215,0.00018994,60]
[319180239,1710588643015,-4626.87224253,0.00018894,2]
[319180241,1710588643025,-186.08322436,0.000189,2]
[319180243,1710588643034,-1146.2338482,0.00018994,60]
[319180245,1710588643046,-10310.13713633,0.00018994,60]
[319180247,1710588643057,-858.40399998,0.00018994,60]
[319180251,1710588643069,-7368.45532544,0.00018994,60]
[319180532,1710588646002,-290.80471979,0.00018992,2]
[319180534,1710588646013,-160.59923582,0.00018993,2]
[319180536,1710588646023,-886.23029756,0.00018993,2]
[319180538,1710588646032,-298.85268378,0.00018993,2]
[319180540,1710588646041,-1607.97410816,0.00018993,2]
[319180542,1710588646050,-2233.2589549,0.00018993,2]
[319180544,1710588646062,-1198.24795448,0.00018993,2]
[319180546,1710588646071,-766.33934636,0.00018994,60]
[319185934,1710588853158,155.164474,0.00015,40]
[319185981,1710589832099,-179.88530837,0.00014126,2]
[319185983,1710589832109,-290.80471979,0.00014127,2]
[319185985,1710589832118,-406.30801325,0.00014128,2]
[319185987,1710589832130,-1710.8012162,0.00014128,2]
[319185988,1710589832139,-2600.35966452,0.00014129,2]
[319185989,1710589832147,-381.8787319,0.00014129,2]
[319185990,1710589832156,-1765.8891345,0.0001413,2]
[319185991,1710589832170,-1381.99141491,0.0001413,2]
[319185992,1710589832180,-3431.50690938,0.0001413,2]
[319185993,1710589832189,-208.51873465,0.00014131,2]
[319185994,1710589832197,-160.59923582,0.00014131,2]
[319185995,1710589832206,-342.116072,0.00014133,2]
[319185996,1710589832215,-1000.0,0.00015294,2]
[319185997,1710589832224,-4373.29462319,0.00015394,2]
[319186067,1710589838066,-580.94121186,0.00015394,2]
[319186069,1710589838077,-1454.64,0.00015394,2]
[319186075,1710589838121,-1498.74128468,0.00015394,2]
[319186076,1710589838132,-501.25871532,0.00015394,2]
[319186077,1710589838142,-97049.47422108,0.00015394,2]
[319186190,1710589962732,-1000.0,0.00015294,2]
[319186191,1710589962757,-43750.0,0.00015394,2]
[319186201,1710590804681,171.058036,0.00013699,2]
[319186207,1710590928794,208.51873465,0.00013894,2]
[319186209,1710590939688,179.88530837,0.00013893,2]
[319186210,1710590947704,179.88530837,0.00013893,2]
[319186211,1710590955863,179.88530837,0.00013893,2]
[319186213,1710590963774,160.59923582,0.00013892,2]
[319186214,1710590971830,160.59923582,0.00013892,2]
[319186216,1710590980511,208.51873465,0.00013891,2]
[319186219,1710590989185,208.51873465,0.00013891,2]
[319186220,1710590997063,179.88530837,0.0001389,2]
[319186221,1710591008903,179.88530837,0.0001389,2]
[319186222,1710591017706,179.88530837,0.0001389,2]
[319186223,1710591026543,179.88530837,0.0001389,2]
[319186245,1710591032168,-179.88530837,0.0001403,2]
[319186247,1710591032178,-428.60585213,0.0001403,2]
[319186302,1710591032717,160.59923582,0.00013889,2]
[319186341,1710591034254,1853.67128349,0.0001389,2]
[319186369,1710591039045,-208.51873465,0.00014029,2]
[319186370,1710591039054,-2719.27469728,0.0001403,2]
[319186371,1710591039063,-2117.10922945,0.00014031,2]
[319186372,1710591039073,-427.53534033,0.00015294,2]
[319186373,1710591039082,-18485.29354392,0.00015394,2]
[319186466,1710592232381,-247.157016,0.00014341,2]
[319186467,1710592232391,-33.31627547,0.00015257,2]
[319186506,1710592238393,-175.20245918,0.00015257,2]
[319186508,1710592238403,-148.05353682,0.00015258,2]
[319186514,1710592238448,-1327.72928527,0.00015258,2]
[319186516,1710592238458,-338.80243722,0.00015259,2]
[319186518,1710592238469,-342.02827228,0.00015294,2]
[319186520,1710592238479,-32029.57071141,0.00015394,2]
[319186590,1710592240467,-160.59923582,0.00015256,2]
[319186591,1710592240476,-68222.61738752,0.00015394,2]
[319186605,1710592243563,-152710.22561306,0.00015394,2]
[319186607,1710592243585,-854.94115179,0.00015394,2]
[319186614,1710592246508,-338.7091611,0.00015394,2]
[319186771,1710593443833,-518.08197293,0.00015358,2]
[319186773,1710593443843,-616.57606824,0.00015358,2]
[319186776,1710593443853,-290.80471979,0.00015359,2]
[319186778,1710593443863,-338.80243722,0.00015359,2]
[319186779,1710593443872,-15272.02320787,0.00015393,2]
[319186780,1710593443882,-25184.24237507,0.00015394,2]
[319186781,1710593443892,-312.62278013,0.00015394,2]
[319186782,1710593443901,-1936.87007778,0.00015394,2]
[319186783,1710593443910,-247.157016,0.00017342,2]
[319186784,1710593443919,-35190.26131915,0.000179,2]
[319186785,1710593443928,-637.194004,0.00018407,2]
[319186786,1710593443938,-975.160819,0.00018407,2]
[319186787,1710593443947,-424.796003,0.00018407,2]
[319186788,1710593443956,-165.656761,0.00018407,2]
[319186789,1710593443969,-1368.113089,0.0001853,2]
[319186790,1710593443978,-11600.16654288,0.0001853,2]
[319186791,1710593443987,-204.89534336,0.00018628,2]
[319186792,1710593443997,-155.91462232,0.00018628,2]
[319186793,1710593444006,-155.71244455,0.00018629,2]
[319186794,1710593444015,-500.0,0.0001863,2]
[319186795,1710593444025,-500.0,0.0001863,2]
[319186796,1710593444035,-500.0,0.0001863,2]
[319186797,1710593444044,-500.0,0.0001863,2]
[319186798,1710593444053,-500.0,0.0001863,2]
[319186799,1710593444062,-500.0,0.0001863,2]
[319186800,1710593444071,-217.0365445,0.0001863,2]
[319186801,1710593444081,-500.0,0.0001863,2]
[319186802,1710593444091,-500.0,0.0001863,2]
[319186803,1710593444100,-500.0,0.0001863,2]
[319186804,1710593444109,-500.0,0.0001863,2]
[319186805,1710593444118,-500.0,0.0001863,2]
[319186806,1710593444127,-500.0,0.0001863,2]
[319186807,1710593444136,-500.0,0.0001863,2]
[319186808,1710593444145,-505.56449517,0.0001863,2]
[319186809,1710593444154,-500.0,0.0001863,2]
[319186810,1710593444163,-500.0,0.0001863,2]
[319186811,1710593444172,-511.12635858,0.0001863,2]
[319186812,1710593444182,-500.0,0.0001863,2]
[319186813,1710593444193,-500.0,0.0001863,2]
[319186814,1710593444203,-601.47147466,0.0001863,2]
[319186815,1710593444216,-465.81828989,0.0001863,2]
[319186816,1710593444226,-500.0,0.0001863,2]
[319186817,1710593444236,-500.0,0.0001863,2]
[319186818,1710593444245,-164.23335731,0.0001863,2]
[319186819,1710593444254,-500.0,0.0001863,2]
[319186820,1710593444263,-500.0,0.0001863,2]
[319186821,1710593444273,-500.0,0.0001863,2]
[319186822,1710593444282,-500.0,0.0001863,2]
[319186823,1710593444291,-500.0,0.0001863,2]
[319186824,1710593444300,-500.0,0.0001863,2]
[319186825,1710593444309,-500.0,0.0001863,2]
[319186826,1710593444318,-452.92581961,0.0001863,2]
[319186827,1710593444328,-218.89740939,0.0001863,2]
[319186828,1710593444337,-500.0,0.0001863,2]
[319186829,1710593444346,-530.61862854,0.0001863,2]
[319186830,1710593444355,-286.61440658,0.0001863,2]
[319186831,1710593444364,-500.0,0.0001863,2]
[319186832,1710593444374,-500.0,0.0001863,2]
[319186833,1710593444383,-500.0,0.0001863,2]
[319186834,1710593444393,-500.0,0.0001863,2]
[319186835,1710593444402,-500.0,0.0001863,2]
[319186836,1710593444411,-500.0,0.0001863,2]
[319186837,1710593444420,-500.0,0.0001863,2]
[319186838,1710593444429,-500.0,0.0001863,2]
[319186839,1710593444438,-500.0,0.0001863,2]
[319186840,1710593444447,-500.0,0.0001863,2]
[319186841,1710593444456,-500.0,0.0001863,2]
[319186842,1710593444468,-500.0,0.0001863,2]
[319186843,1710593444477,-584.81357729,0.0001863,2]
[319186844,1710593444486,-500.0,0.0001863,2]
[319186845,1710593444496,-504.71088295,0.0001863,2]
[319186846,1710593444504,-500.0,0.0001863,2]
[319186847,1710593444514,-347.08756578,0.0001863,2]
[319186848,1710593444523,-501.66625706,0.0001863,2]
[319186849,1710593444532,-500.0,0.0001863,2]
[319186850,1710593444541,-500.0,0.0001863,2]
[319186851,1710593444550,-500.0,0.0001863,2]
[319186852,1710593444559,-500.0,0.0001863,2]
[319186853,1710593444568,-500.0,0.0001863,2]
[319186854,1710593444577,-500.0,0.0001863,2]
[319186855,1710593444587,-500.0,0.0001863,2]
[319186856,1710593444597,-500.0,0.0001863,2]
[319186857,1710593444607,-500.0,0.0001863,2]
[319186858,1710593444619,-500.0,0.0001863,2]
[319186859,1710593444628,-500.0,0.0001863,2]
[319186860,1710593444638,-500.0,0.0001863,2]
[319186861,1710593444647,-500.0,0.0001863,2]
[319186862,1710593444657,-302.4600858,0.0001863,2]
[319186863,1710593444667,-500.0,0.0001863,2]
[319186864,1710593444676,-400.30519087,0.0001863,2]
[319186865,1710593444685,-291.59442481,0.0001863,2]
[319186866,1710593444694,-502.51461209,0.0001863,2]
[319186867,1710593444704,-500.0,0.0001863,2]
[319186868,1710593444715,-500.0,0.0001863,2]
[319186869,1710593444725,-500.0,0.0001863,2]
[319186870,1710593444734,-500.0,0.0001863,2]
[319186871,1710593444745,-500.0,0.0001863,2]
[319186872,1710593444754,-500.0,0.0001863,2]
[319186873,1710593444766,-500.0,0.0001863,2]
[319186874,1710593444777,-500.0,0.0001863,2]
[319186875,1710593444786,-500.0,0.0001863,2]
[319186876,1710593444795,-500.0,0.0001863,2]
[319186877,1710593444805,-500.0,0.0001863,2]
[319186878,1710593444814,-455.64997758,0.0001863,2]
[319186879,1710593444823,-500.0,0.0001863,2]
[319186880,1710593444832,-500.0,0.0001863,2]
[319186881,1710593444842,-500.0,0.0001863,2]
[319186882,1710593444851,-500.0,0.0001863,2]
[319186883,1710593444860,-500.0,0.0001863,2]
[319186884,1710593444870,-505.87085465,0.0001863,2]
[319186885,1710593444879,-500.0,0.0001863,2]
[319186886,1710593444888,-500.0,0.0001863,2]
[319186887,1710593444898,-500.0,0.0001863,2]
[319186888,1710593444908,-500.0,0.0001863,2]
[319186889,1710593444918,-510.69974359,0.0001863,2]
[319186890,1710593444927,-500.0,0.0001863,2]
[319186891,1710593444937,-500.0,0.0001863,2]
[319186892,1710593444946,-503.44560569,0.0001863,2]
[319186893,1710593444956,-500.0,0.0001863,2]
[319186894,1710593444967,-500.0,0.0001863,2]
[319186895,1710593444976,-500.0,0.0001863,2]
[319186896,1710593444985,-500.0,0.0001863,2]
[319186897,1710593444995,-500.0,0.0001863,2]
[319186898,1710593445004,-500.0,0.0001863,2]
[319186899,1710593445013,-500.0,0.0001863,2]
[319186900,1710593445023,-500.0,0.0001863,2]
[319186901,1710593445033,-500.0,0.0001863,2]
[319186902,1710593445042,-500.0,0.0001863,2]
[319186903,1710593445053,-500.0,0.0001863,2]
[319186904,1710593445062,-500.0,0.0001863,2]
[319186905,1710593445071,-500.0,0.0001863,2]
[319186906,1710593445081,-500.0,0.0001863,2]
[319186907,1710593445090,-500.0,0.0001863,2]
[319186908,1710593445099,-500.0,0.0001863,2]
[319186909,1710593445109,-500.0,0.0001863,2]
[319186910,1710593445118,-500.0,0.0001863,2]
[319186911,1710593445127,-500.0,0.0001863,2]
[319186912,1710593445137,-500.0,0.0001863,2]
[319186913,1710593445146,-500.0,0.0001863,2]
[319186914,1710593445155,-391.85768073,0.0001863,2]
[319186915,1710593445165,-500.0,0.0001863,2]
[319186916,1710593445174,-582.71076807,0.0001863,2]
[319186917,1710593445183,-500.0,0.0001863,2]
[319186918,1710593445192,-555.13913327,0.0001863,2]
[319186919,1710593445201,-500.0,0.0001863,2]
[319186920,1710593445213,-500.0,0.0001863,2]
[319186921,1710593445222,-444.53085756,0.0001863,2]
[319186922,1710593445231,-645.65622598,0.0001863,2]
[319186923,1710593445240,-500.0,0.0001863,2]
[319186924,1710593445250,-269.97365562,0.0001863,2]
[319186925,1710593445259,-501.60303341,0.0001863,2]
[319186926,1710593445268,-362.79791891,0.0001863,2]
[319186927,1710593445277,-500.0,0.0001863,2]
[319186928,1710593445286,-500.0,0.0001863,2]
[319186929,1710593445296,-500.0,0.0001863,2]
[319186930,1710593445305,-500.0,0.0001863,2]
[319186931,1710593445314,-500.0,0.0001863,2]
[319186932,1710593445323,-500.0,0.0001863,2]
[319186933,1710593445332,-500.0,0.0001863,2]
[319186934,1710593445341,-500.0,0.0001863,2]
[319186935,1710593445351,-500.0,0.0001863,2]
[319186936,1710593445360,-500.0,0.0001863,2]
[319186937,1710593445369,-500.0,0.0001863,2]
[319186938,1710593445378,-500.0,0.0001863,2]
[319186939,1710593445388,-500.0,0.0001863,2]
[319186940,1710593445397,-586.31496255,0.0001863,2]
[319186941,1710593445406,-500.0,0.0001863,2]
[319186942,1710593445415,-563.05,0.0001863,2]
[319186943,1710593445426,-500.0,0.0001863,2]
[319186944,1710593445436,-563.05,0.0001863,2]
[319186945,1710593445447,-500.0,0.0001863,2]
[319186946,1710593445457,-563.05,0.0001863,2]
[319186947,1710593445471,-500.0,0.0001863,2]
[319186948,1710593445480,-563.05,0.0001863,2]
[319186949,1710593445490,-563.05,0.0001863,2]
[319186950,1710593445499,-563.05,0.0001863,2]
[319186951,1710593445509,-500.0,0.0001863,2]
[319186952,1710593445519,-563.05,0.0001863,2]
[319186953,1710593445529,-500.0,0.0001863,2]
[319186954,1710593445538,-563.05,0.0001863,2]
[319186955,1710593445548,-563.05,0.0001863,2]
[319186956,1710593445558,-563.05,0.0001863,2]
[319186957,1710593445567,-500.0,0.0001863,2]
[319186958,1710593445578,-563.05,0.0001863,2]
[319186959,1710593445591,-500.0,0.0001863,2]
[319186960,1710593445600,-563.05,0.0001863,2]
[319186961,1710593445609,-500.0,0.0001863,2]
[319186962,1710593445619,-563.05,0.0001863,2]
[319186963,1710593445628,-500.0,0.0001863,2]
[319186964,1710593445638,-563.05,0.0001863,2]
[319186965,1710593445647,-500.0,0.0001863,2]
[319186966,1710593445656,-563.05,0.0001863,2]
[319186967,1710593445667,-500.0,0.0001863,2]
[319186968,1710593445677,-500.0,0.0001863,2]
[319186969,1710593445687,-563.05,0.0001863,2]
[319186970,1710593445697,-500.0,0.0001863,2]
[319186971,1710593445707,-500.0,0.0001863,2]
[319186972,1710593445721,-500.0,0.0001863,2]
[319186973,1710593445730,-563.05,0.0001863,2]
[319186974,1710593445740,-500.0,0.0001863,2]
[319186975,1710593445832,-500.0,0.0001863,2]
[319186976,1710593445842,-500.0,0.0001863,2]
[319186977,1710593445852,-500.0,0.0001863,2]
[319186978,1710593445861,-500.0,0.0001863,2]
[319186979,1710593445871,-500.0,0.0001863,2]
[319186980,1710593445881,-500.0,0.0001863,2]
[319186981,1710593445890,-500.0,0.0001863,2]
[319186982,1710593445900,-500.0,0.0001863,2]
[319186983,1710593445909,-467.46861726,0.0001863,2]
[319186984,1710593445918,-500.0,0.0001863,2]
[319186985,1710593445928,-500.0,0.0001863,2]
[319186986,1710593445938,-500.0,0.0001863,2]
[319186987,1710593445947,-500.0,0.0001863,2]
[319186988,1710593445957,-500.0,0.0001863,2]
[319186989,1710593445967,-500.0,0.0001863,2]
[319186990,1710593445977,-500.0,0.0001863,2]
[319186991,1710593445986,-555.85057962,0.0001863,2]
[319186992,1710593445996,-509.6272413,0.0001863,2]
[319186993,1710593446005,-151.0,0.0001863,2]
[319186994,1710593446015,-151.0,0.0001863,2]
[319186995,1710593446024,-151.0,0.0001863,2]
[319186996,1710593446034,-151.0,0.0001863,2]
[319186997,1710593446043,-151.0,0.0001863,2]
[319186998,1710593446053,-151.0,0.0001863,2]
[319186999,1710593446063,-151.0,0.0001863,2]
[319187001,1710593446072,-151.0,0.0001863,2]
[319187003,1710593446082,-151.0,0.0001863,2]
[319187004,1710593446094,-151.0,0.0001863,2]
[319187005,1710593446104,-243.57217064,0.0001863,2]
[319187006,1710593446113,-151.0,0.0001863,2]
[319187007,1710593446123,-500.0,0.0001863,2]
[319187009,1710593446132,-500.0,0.0001863,2]
[319187011,1710593446142,-501.57175992,0.0001863,2]
[319187013,1710593446151,-500.0,0.0001863,2]
[319187015,1710593446161,-500.0,0.0001863,2]
[319187017,1710593446170,-500.0,0.0001863,2]
[319187019,1710593446180,-622.3607422,0.0001863,2]
[319187021,1710593446188,-500.0,0.0001863,2]
[319187023,1710593446197,-500.0,0.0001863,2]
[319187024,1710593446206,-500.0,0.0001863,2]
[319187027,1710593446217,-500.0,0.0001863,2]
[319187028,1710593446227,-500.0,0.0001863,2]
[319187031,1710593446236,-500.0,0.0001863,2]
[319187033,1710593446246,-500.0,0.0001863,2]
[319187034,1710593446255,-500.0,0.0001863,2]
[319187037,1710593446265,-500.0,0.0001863,2]
[319187038,1710593446275,-500.0,0.0001863,2]
[319187040,1710593446284,-500.0,0.0001863,2]
[319187042,1710593446294,-500.0,0.0001863,2]
[319187045,1710593446304,-500.0,0.0001863,2]
[319187047,1710593446313,-500.0,0.0001863,2]
[319187048,1710593446323,-500.0,0.0001863,2]
[319187050,1710593446332,-500.0,0.0001863,2]
[319187052,1710593446341,-500.0,0.0001863,2]
[319187054,1710593446350,-500.0,0.0001863,2]
[319187057,1710593446360,-500.0,0.0001863,2]
[319187059,1710593446369,-500.0,0.0001863,2]
[319187060,1710593446378,-500.0,0.0001863,2]
[319187062,1710593446387,-500.0,0.0001863,2]
[319187064,1710593446397,-500.0,0.0001863,2]
[319187066,1710593446406,-500.0,0.0001863,2]
[319187068,1710593446415,-500.0,0.0001863,2]
[319187070,1710593446425,-558.62635289,0.0001863,2]
[319187072,1710593446434,-500.0,0.0001863,2]
[319187074,1710593446443,-500.0,0.0001863,2]
[319187075,1710593446452,-500.0,0.0001863,2]
[319187076,1710593446461,-500.0,0.0001863,2]
[319187077,1710593446473,-500.0,0.0001863,2]
[319187078,1710593446483,-500.0,0.0001863,2]
[319187079,1710593446491,-500.0,0.0001863,2]
[319187080,1710593446500,-500.0,0.0001863,2]
[319187081,1710593446509,-158.9,0.0001863,2]
[319187082,1710593446519,-155.16602765,0.0001863,2]
[319187083,1710593446528,-500.0,0.0001863,2]
[319187084,1710593446537,-500.0,0.0001863,2]
[319187085,1710593446547,-500.0,0.0001863,2]
[319187086,1710593446556,-500.0,0.0001863,2]
[319187087,1710593446564,-500.0,0.0001863,2]
[319187088,1710593446574,-500.0,0.0001863,2]
[319187089,1710593446583,-563.90340239,0.0001863,2]
[319187090,1710593446593,-584.41489833,0.0001863,2]
[319187091,1710593446602,-500.0,0.0001863,2]
[319187092,1710593446611,-502.77210832,0.0001863,2]
[319187093,1710593446620,-500.0,0.0001863,2]
[319187094,1710593446630,-500.0,0.0001863,2]
[319187095,1710593446641,-500.0,0.0001863,2]
[319187096,1710593446650,-500.0,0.0001863,2]
[319187097,1710593446659,-500.0,0.0001863,2]
[319187098,1710593446668,-500.0,0.0001863,2]
[319187099,1710593446678,-500.0,0.0001863,2]
[319187100,1710593446688,-500.0,0.0001863,2]
[319187101,1710593446697,-500.0,0.0001863,2]
[319187102,1710593446706,-500.0,0.0001863,2]
[319187103,1710593446719,-500.0,0.0001863,2]
[319187104,1710593446728,-500.0,0.0001863,2]
[319187105,1710593446738,-500.0,0.0001863,2]
[319187106,1710593446747,-500.0,0.0001863,2]
[319187107,1710593446755,-500.0,0.0001863,2]
[319187108,1710593446764,-500.0,0.0001863,2]
[319187109,1710593446774,-151.0,0.0001863,2]
[319187110,1710593446783,-500.0,0.0001863,2]
[319187111,1710593446792,-500.0,0.0001863,2]
[319187112,1710593446802,-151.0,0.0001863,2]
[319187113,1710593446811,-272.75450182,0.0001863,2]
[319187114,1710593446821,-271.25992355,0.0001863,2]
[319187115,1710593446830,-151.0,0.0001863,2]
[319187116,1710593446840,-151.0,0.0001863,2]
[319187117,1710593446849,-151.0,0.0001863,2]
[319187118,1710593446859,-151.0,0.0001863,2]
[319187119,1710593446870,-151.0,0.0001863,2]
[319187120,1710593446883,-151.0,0.0001863,2]
[319187121,1710593446896,-151.0,0.0001863,2]
[319187122,1710593446912,-151.0,0.0001863,2]
[319187123,1710593446926,-151.0,0.0001863,2]
[319187124,1710593446939,-277.159914,0.0001863,2]
[319187125,1710593446950,-500.0,0.0001863,2]
[319187126,1710593446960,-500.0,0.0001863,2]
[319187127,1710593446975,-411.05592036,0.0001863,2]
[319187128,1710593446987,-500.0,0.0001863,2]
[319187129,1710593446999,-500.0,0.0001863,2]
[319187130,1710593447012,-594.04523945,0.0001863,2]
[319187131,1710593447024,-500.0,0.0001863,2]
[319187132,1710593447036,-500.0,0.0001863,2]
[319187133,1710593447048,-450.88028128,0.0001863,2]
[319187134,1710593447060,-500.0,0.0001863,2]
[319187135,1710593447073,-500.0,0.0001863,2]
[319187136,1710593447083,-500.0,0.0001863,2]
[319187137,1710593447093,-500.0,0.0001863,2]
[319187138,1710593447105,-500.0,0.0001863,2]
[319187139,1710593447117,-500.0,0.0001863,2]
[319187140,1710593447129,-500.0,0.0001863,2]
[319187141,1710593447141,-500.0,0.0001863,2]
[319187142,1710593447153,-589.029424,0.0001863,2]
[319187143,1710593447164,-500.0,0.0001863,2]
[319187144,1710593447176,-501.47009959,0.0001863,2]
[319187145,1710593447187,-500.0,0.0001863,2]
[319187147,1710593447200,-512.15362293,0.0001863,2]
[319187149,1710593447211,-783.72,0.0001863,2]
[319187151,1710593447225,-783.72,0.0001863,2]
[319187152,1710593447236,-783.72,0.0001863,2]
[319187154,1710593447246,-783.72,0.0001863,2]
[319187155,1710593447261,-783.72,0.0001863,2]
[319187157,1710593447273,-783.72,0.0001863,2]
[319187159,1710593447284,-783.72,0.0001863,2]
[319187160,1710593447297,-783.72,0.0001863,2]
[319187161,1710593447307,-783.72,0.0001863,2]
[319187162,1710593447319,-783.72,0.0001863,2]
[319187164,1710593447330,-783.72,0.0001863,2]
[319187166,1710593447342,-783.72,0.0001863,2]
[319187168,1710593447354,-783.72,0.0001863,2]
[319187169,1710593447365,-783.72,0.0001863,2]
[319187170,1710593447377,-783.72,0.0001863,2]
[319187171,1710593447390,-783.72,0.0001863,2]
[319187172,1710593447403,-783.72,0.0001863,2]
[319187173,1710593447416,-151.0,0.0001863,2]
[319187174,1710593447429,-151.0,0.0001863,2]
[319187175,1710593447442,-151.0,0.0001863,2]
[319187176,1710593447455,-211.454357,0.0001863,2]
[319187177,1710593447469,-339.5883696,0.0001863,2]
[319187178,1710593447480,-500.0,0.0001863,2]
[319187179,1710593447490,-500.0,0.0001863,2]
[319187180,1710593447500,-564.25727124,0.0001863,2]
[319187181,1710593447511,-500.0,0.0001863,2]
[319187182,1710593447522,-500.0,0.0001863,2]
[319187183,1710593447533,-500.70956521,0.0001863,2]
[319187184,1710593447545,-500.0,0.0001863,2]